[Event "4NCL 2021-22"]
[Site "England"]
[Date "2022.04.30"]
[Round "7.79"]
[White "Duggan, John E"]
[Black "Ledger, Stephen C"]
[Result "1-0"]
[ECO "A43"]
[WhiteElo "2085"]
[BlackElo "2171"]
[Annotator "TA"]
[PlyCount "121"]
[EventDate "2021.11.27"]
[EventType "team-tourn"]
[EventCountry "ENG"]
[SourceTitle "playchess.com"]
[Source "ChessBase"]
[SourceQuality "1"]
[TimeControl "40/6000+30:3000+30"]

{[%evp 21,121,43,45,40,76,16,26,0,0,0,0,0,0,0,1,0,0,-44,-38,-40,0,-28,-13,-18,-18,-24,-20,-31,-31,-31,-31,-31,-31,-56,-59,-42,12,9,29,21,78,77,72,72,72,66,129,129,129,130,122,122,207,215,621,603,599,575,564,532,458,335,297,296,529,439,1118,834,2430,2187,2290,2023,2084,1905,3187,1828,5549,3799,29961,29965,29984,29963,29960,12815,29984,29985,29985,29986,29986,29987,29989,29988,29988,29989,29991,29992,29995,29992,29996,29997,29997,29998]} 1. d4 {[%emt 0:00:04]} Nf6 {[%emt 0:00:09]} 2. Nf3 {[%emt 0:00:23]} c5 {[%emt 0:01:08]} 3. d5 {[%emt 0:00:54]} b5 {[%emt 0:01:21]} 4. Bg5 {[%emt 0:02:14]} d6 {[%emt 0:02:12]} 5. Bxf6 {[%emt 0:02:06]} exf6 {[%emt 0:00:44]} 6. e4 {[%emt 0:00:27]} a6 {[%emt 0:02:06]} 7. a4 {[%emt 0:02:38]} b4 {[%emt 0:02:02]} 8. Nbd2 {[%emt 0:01:47]} g6 {[%emt 0:01:59]} 9. Bd3 {[%emt 0:03:00]} Bg7 {[%emt 0:01:23]} 10. Nc4 {[%emt 0:00:27]} a5 {[%emt 0:10:19]} 11. O-O {[%emt 0:01:44]} O-O {[%emt 0:03:57]} 12. Nfd2 {[%emt 0:04:58] A43: Schmid Benoni.} Bb7 {[%emt 0:14:56][%cal Of6f5]} 13. Qf3 {[%emt 0:30:46] Against f5. White is more active.} ({White should try} 13. g4 $16) 13... Nd7 $11 {[%emt 0:10:18]} 14. Qg3 {[%emt 0:00:00] White has an edge.} ({But not} 14. Nxd6 $2 Ne5 $1 15. Qg3 Qxd6 $19) 14... Ne5 {[%emt 0:01:19]} 15. f4 {[%emt 0:00:00]} Nxc4 {[%emt 0:01:50]} 16. Bxc4 {[%emt 0:03:28]} f5 {[%emt 0:04:25] [#]} 17. c3 $146 {[%emt 0:06:43]} ({Predecessor:} 17. exf5 Bxb2 18. Rab1 Bd4+ 19. Kh1 Qd7 20. Ne4 Ba6 21. Bxa6 Rxa6 22. Qd3 Ra7 23. g4 gxf5 {0-1 (31) Sarighioleanu,S (1902)-Mihai,C (1997) Mamaia 2021}) 17... Qd7 {[%emt 0:11:46]} 18. Qd3 {[%emt 0:04:50]} Bc8 {[%emt 0:05:16]} 19. Rfe1 {[%emt 0:10:03]} fxe4 {[%emt 0:04:33]} 20. Nxe4 {[%emt 0:00:59]} Qd8 {[%emt 0:01:26]} 21. Re3 {[%emt 0:13:01]} Bf5 {[%emt 0:05:59]} 22. Bb5 {[%emt 0:04:01]} Ra7 {[%emt 0:03:44]} 23. Rae1 {[%emt 0:02:08]} Re7 {[%emt 0:02:24]} 24. Qd2 {[%emt 0:01:56]} (24. g3 {feels hotter.} h5 25. Kg2 h4 26. R3e2) 24... Bxe4 {[%emt 0:02:47]} 25. Rxe4 {[%emt 0:00:01]} Rxe4 {[%emt 0:00:28]} 26. Rxe4 {[%emt 0:00:01]} Qf6 {[%emt 0:01:41]} 27. cxb4 {[%emt 0:01:38]} axb4 {[%emt 0:05:26]} 28. b3 {[%emt 0:03:56]} Qa1+ {[%emt 0:04:22]} (28... Qf5 $15 29. Qd3 Bd4+ 30. Rxd4 cxd4 31. Qxf5 gxf5) 29. Re1 {[%emt 0:02:11]} Bd4+ {[%emt 0:01:59]} 30. Kf1 {[%emt 0:00:09][%cal Bg1f1,Bf1e2,Be2d3,Bd3c2][%mdl 32]} Qc3 {[%emt 0:01:30]} (30... Qa3 $1 $11 {keeps the balance.} 31. Qd1 Qb2) 31. Qxc3 $16 {[%emt 0:00:52]} bxc3 {[%emt 0:00:12][%mdl 4096] Endgame KRB-KRB} 32. Ke2 {[%emt 0:00:50]} Ra8 {[%emt 0:00:47]} 33. Kd3 {[%emt 0:00:17]} Bf6 {[%emt 0:00:30] White leaves nothing to chance now.} (33... Ra7 $14) 34. Re8+ {[%emt 0:04:05]} Rxe8 {[%emt 0:00:10]} 35. Bxe8 {[%emt 0:00:01] KB-KB} Kf8 {[%emt 0:00:59] [#]} 36. Bc6 {[%emt 0:00:43]} c2 {[%emt 0:01:08]} (36... c4+ $16 {was necessary.} 37. bxc4 Bd8 38. Kxc3 Ba5+ 39. Kd3 f5) 37. Kxc2 $18 {[%emt 0:00:03] Strongly threatening Kd3.} Bd8 $2 {[%emt 0:00:10]} (37... c4 38. b4 (38. bxc4 Bd8 $16) 38... Ke7) 38. Kd3 {[%emt 0:00:16]} Ke7 {[%emt 0:00:42]} 39. Kc4 {[%emt 0:00:04] And now Kb5 would win.} Bc7 {[%emt 0:01:05]} 40. Kb5 {[%emt 0:00:14] a5 is the strong threat.} Kd8 {[%emt 0:00:24]} 41. Bb7 {[%emt 0:50:24]} Kd7 {[%emt 0:09:42]} 42. a5 {[%emt 0:00:00]} Bb8 $2 {[%emt 0:12:36]} (42... f6 43. Bc6+ Kc8) 43. g4 {[%emt 0:00:00]} Kc7 {[%emt 0:04:23]} (43... g5 $142 44. fxg5 c4 45. Bc6+ Kc8 46. bxc4 Ba7) 44. Bc6 {[%emt 0:00:00]} f6 {[%emt 0:00:50]} 45. g5 {[%emt 0:00:00]} fxg5 {[%emt 0:00:15]} 46. fxg5 {[%emt 0:00:00]} Ba7 {[%emt 0:01:34]} 47. Be8 {[%emt 0:00:00]} c4 {[%emt 0:01:14]} 48. Kxc4 {[%emt 0:00:00] Threatening mate with Bc6.} Be3 {[%emt 0:00:39]} 49. b4 {[%emt 0:00:00][%cal Bb3b4,Bb4b5,Bb5b6][%mdl 32]} Bxg5 {[%emt 0:01:14]} 50. b5 {[%emt 0:00:00]} Kb7 {[%emt 0:03:50]} 51. Kb4 {[%emt 0:00:00]} Bd2+ {[%emt 0:02:22]} 52. Ka4 {[%emt 0:00:00] Intending b6 and mate.} g5 {[%emt 0:01:57]} 53. b6 {[%emt 0:00:00] White mates.} Ka6 {[%emt 0:00:43]} 54. Bb5+ {[%emt 0:00:00]} Kb7 {[%emt 0:00:10]} 55. Be2 {[%emt 0:00:00]} Bf4 {[%emt 0:05:02]} 56. h3 {[%emt 0:00:00]} Be3 {[%emt 0:00:30]} 57. Kb5 {[%emt 0:00:00]} h6 {[%emt 0:01:03]} 58. a6+ {[%emt 0:00:00][%cal Ba5a6,Ba6a7][%mdl 32]} Kb8 {[%emt 0:01:39]} 59. Kc6 {[%emt 0:00:00]} Bc5 {[%emt 0:01:15]} 60. a7+ {[%emt 0:00:00]} Ka8 {[%emt 0:00:11]} 61. Ba6 {[%emt 0:00:00] Weighted Error Value: White=0.12 (very precise) /Black=0.55} 1-0

[Event "4NCL 2021-22"]
[Site "England"]
[Date "2022.04.30"]
[Round "7.80"]
[White "Varney, Zoe"]
[Black "Wafa, Shrook"]
[Result "0-1"]
[ECO "B07"]
[WhiteElo "2041"]
[BlackElo "2131"]
[Annotator "TA"]
[PlyCount "64"]
[EventDate "2021.11.27"]
[EventType "team-tourn"]
[EventCountry "ENG"]
[SourceTitle "playchess.com"]
[Source "ChessBase"]
[SourceQuality "1"]
[TimeControl "40/6000+30:3000+30"]

{[%evp 17,64,52,47,38,48,0,0,0,0,-20,-29,-24,-20,-37,-9,-68,39,50,41,42,62,9,32,0,0,-10,-6,-6,-7,-112,-117,-68,-9,-135,-157,-163,-89,-97,-78,-78,-78,-200,-190,-29979,-29978,-29976,-29977,-29997,-29998]} 1. e4 {[%emt 1:39:05]} c5 {[%emt 0:00:15]} 2. c3 {[%emt 0:00:06]} g6 {[%emt 0:01:24]} 3. d4 {[%emt 0:00:40]} cxd4 {[%emt 0:00:12]} 4. cxd4 {[%emt 0:00:06]} Bg7 {[%emt 0:00:08]} 5. Nc3 {[%emt 0:02:48]} d6 {[%emt 0:00:38]} 6. h3 {[%emt 0:02:14]} Nf6 {[%emt 0:01:07]} 7. Nf3 {[%emt 0:02:00]} O-O {[%emt 0:06:11]} 8. Bd3 {[%emt 0:00:33]} a6 {[%emt 0:02:23]} 9. O-O {[%emt 0:09:03]} Nc6 {[%emt 0:08:27]} 10. Be3 {[%emt 0:15:20] B07: Pirc Defence: Miscellaneous Systems.} b5 {[%emt 0:06:21]} 11. e5 {[%emt 0:09:36] [#]} (11. Qd2 $14 {feels stronger.}) 11... dxe5 $146 {[%emt 0:12:51]} ({Predecessor:} 11... Ne8 12. Be4 Bb7 13. Rc1 Na5 14. Bxb7 Nxb7 15. b4 d5 16. Qd2 Nc7 17. a3 Qd7 {½-½ (46) Tuominen,T (2165)-Gamback,B (2197) Finland 2004}) 12. dxe5 {[%emt 0:04:53] The position is equal.} Nd5 {[%emt 0:06:47]} 13. Be4 {[%emt 0:08:53]} Nxe3 {[%emt 0:08:20]} 14. Qxd8 {[%emt 0:21:23]} Rxd8 {[%emt 0:08:52]} 15. fxe3 {[%emt 0:00:49]} Bd7 {[%emt 0:09:54]} 16. Ng5 {[%emt 0:09:06]} (16. Nd4 $11 Rac8 17. Nd5) 16... Nxe5 {[%emt 0:15:18]} (16... b4 $15 17. e6 fxe6) 17. Bxa8 $14 {[%emt 0:00:35]} Rxa8 {[%emt 0:00:05]} 18. Nd5 {[%emt 0:02:00]} Re8 {[%emt 0:05:22]} 19. Rac1 {[%emt 0:07:31]} (19. b3 $14) 19... h6 {[%emt 0:01:48]} 20. Nf3 {[%emt 0:01:46]} Nxf3+ {[%emt 0:04:05]} 21. Rxf3 {[%emt 0:00:02]} Bxb2 {[%emt 0:00:33]} 22. Rc7 {[%emt 0:01:01]} Be6 {[%emt 0:00:53]} 23. Nxe7+ {[%emt 0:00:53]} (23. e4 $11) 23... Kg7 $17 {[%emt 0:01:24]} 24. Nc6 {[%emt 0:01:00] Prevents Be5.} Bf6 {[%emt 0:02:26]} ({Black should try} 24... Ba3 $1 $15) 25. Nb4 {[%emt 0:03:15]} (25. e4 $1 $11 {keeps the balance.}) 25... a5 {[%emt 0:00:47]} 26. Nc6 {[%emt 0:00:44]} Bxa2 {[%emt 0:01:30]} (26... a4 $19 27. a3 Bd5 28. Rxf6 Kxf6) 27. Nxa5 {[%emt 0:00:51]} Bd5 {[%emt 0:02:02]} 28. Rf1 {[%emt 0:01:01]} Rxe3 {[%emt 0:00:36] Hoping for ...Bd4.} 29. Rc5 {[%emt 0:00:36] Now White is beyond hope.} (29. Rd1 $17 {might work better.} Re5 30. Rc5) 29... Be4 $19 {[%emt 0:00:52] aiming for ...Bd4. This bishop pair is nice.} 30. Rf2 $2 {[%emt 0:00:45] [#]} (30. Nc6 $19) 30... Re1+ {[%emt 0:00:26] Black mates.} 31. Kh2 {[%emt 0:00:18]} Bd4 {[%emt 0:00:56][%csl LRc5,LRf2]} 32. Rcc2 {[%emt 0:00:06]} Be5+ {[%emt 0:00:17] Weighted Error Value: White=0.69/Black=0.20 (precise)} 0-1

[Event "4NCL 2021-22"]
[Site "England"]
[Date "2022.05.01"]
[Round "8.1"]
[White "Haria, Ravi"]
[Black "Houska, Jovanka"]
[Result "0-1"]
[ECO "B12"]
[WhiteElo "2490"]
[BlackElo "2358"]
[Annotator "TA"]
[PlyCount "140"]
[EventDate "2021.11.27"]
[EventType "team-tourn"]
[EventCountry "ENG"]
[SourceTitle "playchess.com"]
[Source "ChessBase"]
[SourceQuality "1"]
[TimeControl "40/6000+30:3000+30"]

{[%evp 9,140,12,16,20,19,17,17,15,25,27,27,12,10,0,0,0,-7,-10,0,0,13,-3,0,-7,0,0,0,0,0,0,0,0,0,0,3,11,14,13,11,14,6,0,0,0,0,0,0,0,37,37,42,40,39,0,0,0,0,0,52,0,40,16,18,-105,-114,-116,-77,-77,-77,-77,-77,-85,-77,-93,-69,-77,-56,-56,-44,-63,-56,-77,-63,-77,-77,-77,-77,-77,-77,-77,-77,-77,-77,-77,-55,-77,-76,-77,-77,-77,0,-77,-77,-77,-77,-77,-77,-88,-51,-65,-64,-91,-86,-135,-133,-131,-129,-139,-149,-154,-157,-168,-145,-287,-251,-767,-767,-767,-767,-767,-767,-691,-635]} 1. e4 {[%emt 0:02:13]} c6 {[%emt 0:00:04]} 2. d4 {[%emt 0:00:13]} d5 {[%emt 0:00:03]} 3. e5 {[%emt 0:00:06]} Bf5 {[%emt 0:00:04]} 4. Nd2 {[%emt 0:00:06]} e6 {[%emt 0:00:04]} 5. Nb3 {[%emt 0:00:43]} a6 {[%emt 0:00:15]} 6. Nf3 {[%emt 0:01:36] B12: Caro-Kann: Advance Variation.} c5 {[%emt 0:00:04]} 7. Nxc5 {[%emt 0:00:06]} (7. dxc5 {is more complex.} Bxc5 8. Nxc5 Qa5+ 9. c3) 7... Bxc5 {[%emt 0:00:02]} 8. dxc5 {[%emt 0:00:08] The position is equal.} Qa5+ {[%emt 0:00:02]} 9. c3 {[%emt 0:01:10]} Qxc5 {[%emt 0:00:04]} 10. Be2 {[%emt 0:00:37]} Ne7 {[%emt 0:01:43]} 11. O-O {[%emt 0:07:42]} Nd7 {[%emt 0:01:40]} 12. Bf4 {[%emt 0:03:46] [#]} Bg4 $146 {[%emt 0:01:56]} (12... Qc7 13. Re1 O-O 14. Nd4 Bg6 15. h4 h6 16. h5 Bh7 17. Bf1 Nc6 18. Re3 Kh8 {1-0 (56) Haria,R (2490)-Houska,J (2365) Gibraltar 2022}) ({Predecessor:} 12... O-O 13. Rc1 Nc6 14. Re1 h6 15. h3 Rac8 16. Qd2 Rfd8 17. Nd4 Ndxe5 18. Nxf5 exf5 19. Bxe5 Nxe5 20. Bxa6 {½-½ (58) Ortiz Suarez,I (2545)-Vazquez,G (2527) Tornelo INT 2021}) 13. Re1 {[%emt 0:05:24]} Ng6 {[%emt 0:11:42]} 14. Bg3 {[%emt 0:03:23]} Bh5 {[%emt 0:09:56][%cal Bg4h5,Bh5g6,Bg6e4][%mdl 32]} 15. h3 {[%emt 0:17:54]} O-O {[%emt 0:05:11]} 16. Bh2 {[%emt 0:02:31] [#] Black must now prevent g4.} Ne7 {[%emt 0:09:01]} 17. g4 {[%emt 0:02:11]} Bg6 {[%emt 0:00:03]} 18. Nd4 {[%emt 0:01:09]} Nc6 {[%emt 0:04:37]} 19. Bf1 {[%emt 0:14:56]} Be4 {[%emt 0:11:30]} 20. f3 {[%emt 0:05:16]} Bg6 {[%emt 0:03:26]} 21. Kh1 {[%emt 0:00:25]} Qb6 {[%emt 0:01:02]} 22. Qd2 {[%emt 0:04:14]} Rac8 {[%emt 0:02:35] And now ...Nxd4 would win.} 23. Rac1 {[%emt 0:04:59]} Qa5 {[%emt 0:16:05]} 24. Nxc6 {[%emt 0:12:33]} Rxc6 {[%emt 0:01:00]} 25. b3 {[%emt 0:04:54]} Qc7 {[%emt 0:06:52]} 26. c4 {[%emt 0:10:10]} dxc4 {[%emt 0:03:02]} 27. Rxc4 {[%emt 0:02:02]} Rxc4 {[%emt 0:03:11]} 28. bxc4 {[%emt 0:00:02]} Nc5 {[%emt 0:00:38]} 29. Rd1 {[%emt 0:00:54]} h5 {[%emt 0:05:22]} 30. Kg2 {[%emt 0:00:48]} Rc8 {[%emt 0:00:31]} 31. Be2 {[%emt 0:01:16]} Na4 {[%emt 0:03:33]} 32. Bf4 {[%emt 0:02:22]} Nb6 {[%emt 0:01:56]} 33. Rc1 {[%emt 0:00:16]} Na4 {[%emt 0:03:23]} (33... Rd8 $11 34. Qe3 Na4) 34. Rd1 {[%emt 0:00:46]} (34. Qb4 $14 Nb6 35. Qd6) 34... Kh7 {[%emt 0:05:15]} 35. Kg3 {[%emt 0:00:16]} Qc5 {[%emt 0:00:47]} 36. Qd6 {[%emt 0:00:44]} (36. gxh5 $11 Bxh5 37. Qd6 (37. Qc2+ Kg8 $11)) 36... Nc3 $17 {[%emt 0:00:10][%csl LRa2,LRd1,LRe2]} 37. Qxc5 {[%emt 0:00:34]} Rxc5 {[%emt 0:00:53]} 38. Rd2 {[%emt 0:00:21]} Nxe2+ {[%emt 0:00:25]} 39. Rxe2 {[%emt 0:00:03]} Rxc4 {[%emt 0:00:07][%cal Oh5h4][%mdl 4096] Endgame KRB-KRB} 40. Bg5 {[%emt 0:00:52]} b5 {[%emt 0:01:01]} 41. a3 {[%emt 0:50:34]} Bc2 {[%emt 0:05:26]} 42. Bd2 {[%emt 0:00:00]} Bb3 {[%emt 0:12:39]} 43. Bb4 {[%emt 0:00:00]} hxg4 {[%emt 0:09:44]} 44. hxg4 {[%emt 0:00:00]} Rc1 {[%emt 0:02:21]} 45. Re3 {[%emt 0:00:00]} Bc4 {[%emt 0:02:06]} 46. Kf2 {[%emt 0:00:00]} Rf1+ {[%emt 0:03:27]} 47. Kg2 {[%emt 0:00:00]} Ra1 {[%emt 0:00:17]} 48. Kg3 {[%emt 0:00:00]} Ra2 {[%emt 0:01:24]} 49. Kf4 {[%emt 0:00:00]} Kh6 {[%emt 0:01:19]} 50. Kg3 {[%emt 0:00:00]} Kg6 {[%emt 0:02:43]} 51. Kf4 {[%emt 0:00:00]} Kh7 {[%emt 0:00:20]} 52. Kg3 {[%emt 0:00:00]} Kh6 {[%emt 0:00:05]} 53. Rc3 {[%emt 0:00:00]} Re2 {[%emt 0:02:02] Black is more active.} 54. Re3 {[%emt 0:00:00]} Ra2 {[%emt 0:00:57]} 55. Rc3 $1 {[%emt 0:00:00]} Bd5 {[%emt 0:03:59]} 56. Re3 {[%emt 0:00:00]} Kh7 {[%emt 0:03:07]} 57. Kf4 {[%emt 0:00:00]} Rg2 {[%emt 0:00:38]} 58. Kg5 {[%emt 0:04:46]} Bc4 {[%emt 0:00:45]} 59. Rc3 {[%emt 0:01:19]} Re2 {[%emt 0:01:11]} 60. Kf4 {[%emt 0:03:21]} Kh6 {[%emt 0:00:18]} 61. Bf8 {[%emt 0:00:19] [#]} ({Better is} 61. Be7) 61... Bd5 $1 {[%emt 0:02:58]} 62. Re3 {[%emt 0:00:18]} Rg2 {[%emt 0:00:29]} 63. Re1 {[%emt 0:00:44]} Rf2 {[%emt 0:00:51][%csl Gd5][%cal Rf2f3]} 64. Rh1+ {[%emt 0:00:48]} Kg6 {[%emt 0:00:05][%csl Gd5][%cal Rf2f3]} 65. Rh3 {[%emt 0:00:03]} a5 {[%emt 0:00:45][%cal Ba6a5,Ba5a4,Ba4a3][%mdl 32]} 66. Bc5 {[%emt 0:00:58]} (66. Ke3 $17 {was the only chance.} Rc2 67. Rh8) 66... Rb2 {[%emt 0:00:49] Hoping for ...Rb3.} 67. Bf8 $2 {[%emt 0:00:29]} (67. Ke3) 67... Rb3 $19 {[%emt 0:00:22] Black is clearly winning.} 68. Be7 {[%emt 0:00:09]} b4 {[%emt 0:00:29]} 69. axb4 {[%emt 0:00:05]} a4 {[%emt 0:01:17] ( -> ...a3)} 70. b5 {[%emt 0:01:16]} a3 {[%emt 0:00:14] Weighted Error Value: White=0.10 (very precise) /Black=0.09 (flawless)} 0-1

[Event "4NCL 2021-22"]
[Site "England"]
[Date "2022.05.01"]
[Round "8.2"]
[White "Fitzsimons, David"]
[Black "Tan, Justin"]
[Result "1/2-1/2"]
[ECO "C13"]
[WhiteElo "2369"]
[BlackElo "2526"]
[Annotator "TA"]
[PlyCount "72"]
[EventDate "2021.11.27"]
[EventType "team-tourn"]
[EventCountry "ENG"]
[SourceTitle "playchess.com"]
[Source "ChessBase"]
[SourceQuality "1"]
[TimeControl "40/6000+30:3000+30"]

{[%evp 15,72,0,0,0,0,14,12,16,35,17,24,21,89,89,52,0,0,0,0,-32,-31,-38,-32,-33,-27,-31,146,148,148,131,126,0,0,0,11,14,14,0,0,-61,8,10,45,29,73,25,32,32,60,0,2,0,0,0,0,0,0,0,0]} 1. e4 {[%emt 0:00:03]} e6 {[%emt 0:00:21]} 2. d4 {[%emt 0:00:13]} d5 {[%emt 0:00:07]} 3. Nc3 {[%emt 0:00:10]} Nf6 {[%emt 0:00:07]} 4. Bg5 {[%emt 0:00:21]} dxe4 {[%emt 0:00:57]} 5. Nxe4 {[%emt 0:00:07]} Be7 {[%emt 0:00:44]} 6. Nxf6+ {[%emt 0:00:24]} Bxf6 {[%emt 0:00:05]} 7. Bxf6 {[%emt 0:00:08]} Qxf6 {[%emt 0:00:04]} 8. Nf3 {[%emt 0:00:10]} O-O {[%emt 0:00:56][%cal Oc7c5]} 9. Qd3 $1 {[%emt 0:04:10][%mdl 4] now scores much better than the old 9.Bd3. C13: French: Classical System: 4 Bg5 Be7, Alekhine-Chatard Attack.} Rd8 {[%emt 0:07:29]} 10. O-O-O {[%emt 0:08:52]} Nc6 {[%emt 0:02:47][%cal Oc6d4]} 11. Qe4 {[%emt 0:01:47] [#]} Rb8 $146 {[%emt 0:16:39]} ({Predecessor:} 11... Rd5 12. Bd3 Qh6+ 13. Qe3 Qxe3+ 14. fxe3 Bd7 15. c3 Ra5 16. a3 Ne7 17. Rhf1 f6 {1-0 (27) Baer,W (1911)-Stevenson,W (828) IECG email 2005}) 12. Bd3 {[%emt 0:09:39]} (12. h4 {looks sharper.} Nb4 13. c3 Nd5 14. Bd3) 12... g6 {[%emt 0:18:59][%cal Rc6d4]} 13. c3 {[%emt 0:03:30]} Rd5 {[%emt 0:06:14]} (13... Ne7 $11 {remains equal.}) 14. Rhe1 $16 {[%emt 0:07:00]} b5 {[%emt 0:04:20]} 15. Qg4 {[%emt 0:06:15]} (15. g4 $14) 15... b4 $11 {[%emt 0:13:34]} 16. c4 {[%emt 0:07:52]} Rd8 {[%emt 0:06:27]} 17. Qg3 {[%emt 0:04:00]} b3 {[%emt 0:06:34]} 18. axb3 {[%emt 0:05:01]} Rxb3 {[%emt 0:01:04]} ({Of course not} 18... Nxd4 19. Nxd4 Rxd4 20. Bc2 $14) 19. Qxc7 {[%emt 0:13:15]} Nxd4 {[%emt 0:01:39]} 20. Bf1 {[%emt 0:08:36]} Bb7 $2 {[%emt 0:05:37]} (20... Rb7 $15 {stays ahead.} 21. Qe5 Qxe5 22. Rxe5 Nb3+ 23. Kc2 Rxd1 24. Kxd1 Bd7) 21. Nxd4 {[%emt 0:11:31]} Rxd4 {[%emt 0:00:02]} 22. Rxd4 {[%emt 0:00:14]} Qxd4 {[%emt 0:00:01]} 23. Qe5 {[%emt 0:00:22]} ({Only move:} 23. Qb8+ $16 Kg7 24. Qe5+ Qxe5 25. Rxe5) 23... Qxf2 {[%emt 0:03:31][%cal Ob3b2] [#] White must now prevent ...Rxb2!} 24. Rd1 {[%emt 0:00:35][%cal Rd1d8] Chess con chili.} Qe3+ {[%emt 0:04:02]} 25. Qxe3 {[%emt 0:00:10]} Rxe3 {[%emt 0:00:02][%mdl 4096] Endgame KRB-KRB} 26. Rd8+ {[%emt 0:01:32]} ({White should try} 26. Kd2 $11 Re5 27. b4) 26... Kg7 $15 {[%emt 0:00:39]} 27. Rb8 {[%emt 0:04:37]} Bc6 {[%emt 0:02:02]} (27... Rb3 $1 $15) 28. Kd2 $11 {[%emt 0:00:11]} Re5 {[%emt 0:00:01]} 29. b4 {[%emt 0:00:22][%mdl 1024] White has compensation.} Rg5 {[%emt 0:02:07]} ({Much worse is} 29... Rf5 30. b5 Bxb5 31. Bd3 Rf2+ 32. Ke3 Bxc4 33. Kxf2 Bxd3 34. Rb3 $11) 30. g3 {[%emt 0:01:14]} (30. Kc3 $16) 30... Rh5 {[%emt 0:00:01]} 31. h4 {[%emt 0:00:28]} Rf5 {[%emt 0:00:02]} 32. Bd3 {[%emt 0:01:27]} (32. Be2 $14) 32... Rf2+ {[%emt 0:00:12] The position is equal.} 33. Kc3 {[%emt 0:03:46]} Rf3 {[%emt 0:00:02] [#] aiming for ...Be4.} 34. Kd2 {[%emt 0:00:30]} Rf2+ {[%emt 0:01:57]} 35. Kc3 {[%emt 0:00:04] Hoping for b5.} Rf3 {[%emt 0:00:15] Strongly threatening ...Be4.} 36. Kd2 {[%emt 0:00:54] Rc8 is the strong threat.} Rf2+ {[%emt 0:01:28] Weighted Error Value: White=0.17 (very precise) /Black=0.28 (precise)} 1/2-1/2

[Event "4NCL 2021-22"]
[Site "England"]
[Date "2022.05.01"]
[Round "8.3"]
[White "Speelman, Jon S"]
[Black "McPhillips, Joseph"]
[Result "1/2-1/2"]
[ECO "E11"]
[WhiteElo "2504"]
[BlackElo "2413"]
[Annotator "TA"]
[PlyCount "77"]
[EventDate "2021.11.27"]
[EventType "team-tourn"]
[EventCountry "ENG"]
[SourceTitle "playchess.com"]
[Source "ChessBase"]
[SourceQuality "1"]
[TimeControl "40/6000+30:3000+30"]

{[%evp 25,77,21,27,23,26,29,43,25,25,26,25,14,24,25,30,25,26,18,27,19,24,13,21,22,28,14,17,3,15,0,3,0,7,5,5,0,11,11,8,8,6,6,11,6,13,6,7,6,6,6,6,14,22,22]} 1. d4 {[%emt 0:00:09]} Nf6 {[%emt 0:00:05]} 2. c4 {[%emt 0:00:32]} e6 {[%emt 0:00:07]} 3. Nf3 {[%emt 0:00:28]} Bb4+ {[%emt 0:00:08]} 4. Bd2 {[%emt 0:01:07]} Qe7 {[%emt 0:00:48]} 5. g3 {[%emt 0:02:42]} Nc6 {[%emt 0:00:45]} 6. Nc3 {[%emt 0:02:30]} Bxc3 {[%emt 0:00:40]} 7. Bxc3 {[%emt 0:00:05]} Ne4 {[%emt 0:00:29]} 8. Rc1 {[%emt 0:00:20]} d6 {[%emt 0:01:09]} 9. d5 {[%emt 0:05:21]} Nxc3 {[%emt 0:01:20]} 10. Rxc3 {[%emt 0:00:08]} Nd8 {[%emt 0:00:34]} 11. Bg2 {[%emt 0:02:08]} O-O {[%emt 0:00:43]} 12. dxe6 {[%emt 0:04:25]} Nxe6 {[%emt 0:00:24]} 13. O-O {[%emt 0:04:22]} Bd7 {[%emt 0:02:37]} 14. Nd4 {[%emt 0:01:40] E11: Bogo-Indian.} Nxd4 {[%emt 0:02:24]} 15. Qxd4 {[%emt 0:00:05]} Bc6 {[%emt 0:00:30]} 16. Re3 {[%emt 0:02:28] White is slightly better.} Qd7 {[%emt 0:00:35] [#]} 17. Bd5 $146 {[%emt 0:00:05]} ({Predecessor:} 17. Rd1 Bxg2 18. Kxg2 b6 19. Rdd3 Rae8 20. b3 h6 21. Rxe8 Rxe8 22. Re3 Rxe3 23. Qxe3 {½-½ (31) Dokhoian,Y (2580)-Wahls,M (2540) Germany 1994}) 17... Rfe8 {[%emt 0:00:54]} 18. Rxe8+ {[%emt 0:04:29]} Qxe8 {[%emt 0:00:59]} 19. e3 {[%emt 0:00:19]} a5 {[%emt 0:03:06]} 20. b3 {[%emt 0:01:32]} b6 {[%emt 0:04:40]} 21. Rc1 {[%emt 0:02:03]} Rd8 {[%emt 0:00:39]} 22. h4 {[%emt 0:03:50]} Bd7 {[%emt 0:01:10]} 23. Rd1 {[%emt 0:00:14]} Be6 {[%emt 0:01:25]} 24. Qf4 {[%emt 0:07:03]} Qe7 {[%emt 0:02:59]} 25. a3 {[%emt 0:06:32]} h6 {[%emt 0:00:52] The position is equal.} 26. Bc6 {[%emt 0:03:51]} Bd7 {[%emt 0:01:43]} 27. Bf3 {[%emt 0:01:45]} Re8 {[%emt 0:03:24]} 28. Bd5 {[%emt 0:06:52]} Be6 {[%emt 0:00:19]} 29. Qf3 {[%emt 0:05:22]} Bxd5 {[%emt 0:05:16]} 30. Rxd5 {[%emt 0:03:53]} Qe4 {[%emt 0:01:11]} 31. Qxe4 {[%emt 0:00:14]} Rxe4 $11 {[%emt 0:00:11][%mdl 4096] Endgame KR-KR} 32. Kg2 {[%emt 0:00:11]} Kf8 {[%emt 0:00:44]} 33. Kf3 {[%emt 0:00:07]} Re8 {[%emt 0:00:18]} 34. e4 {[%emt 0:02:19]} Re6 {[%emt 0:03:04]} 35. h5 {[%emt 0:03:21]} Ke7 {[%emt 0:05:48]} 36. g4 {[%emt 0:00:26]} g6 {[%emt 0:00:55]} 37. hxg6 {[%emt 0:01:55]} fxg6 {[%emt 0:00:13]} 38. Ke3 {[%emt 0:02:43]} g5 {[%emt 0:14:59]} 39. b4 {[%emt 0:03:41] Weighted Error Value: White=0.05 (flawless) /Black=0.04 (flawless)} 1/2-1/2